[Event "22nd Hoogeveen Open 2018"]
[Site "Hoogeveen"]
[Date "2018.10.23"]
[Round "5"]
[White "Miedema, David"]
[Black "Ingebretsen, Jens E"]
[Result "1-0"]
[ECO "E17"]
[WhiteElo "2379"]
[BlackElo "2160"]
[Annotator "NA"]
[PlyCount "89"]
[EventDate "2018.10.20"]
[EventType "swiss"]
[EventCountry "NED"]
[SourceTitle "playchess.com"]
[Source "ChessBase"]
[SourceQuality "1"]
[TimeControl "40/5400+30:1800+30"]

1. d4 {[%emt 0:00:00]} Nf6 {[%emt 0:05:38]} 2. c4 {[%emt 0:00:00]} e6 {[%emt 0:00:13]} 3. Nf3 {[%emt 0:00:00]} b6 {[%emt 0:00:41]} 4. g3 {[%emt 0:00:00]} Bb7 {[%emt 0:00:15]} 5. Bg2 {[%emt 0:00:00]} Be7 {[%emt 0:00:24]} 6. O-O {[%emt 0:00:00]} O-O {[%emt 0:00:14]} 7. d5 {[%emt 0:00:02]} exd5 {[%emt 0:00:14]} 8. Nh4 {[%emt 0:00:03]} c6 {[%emt 0:00:09]} 9. cxd5 {[%emt 0:00:05]} Nxd5 {[%emt 0:00:06]} 10. Nf5 {[%emt 0:00:02]} Nc7 {[%emt 0:00:06]} 11. e4 {[%emt 0:00:04]} d5 {[%emt 0:00:03]} 12. Nc3 {[%emt 0:00:05]} Bf6 {[%emt 0:00:03]} 13. Bf4 {[%emt 0:00:04]} Bc8 {[%emt 0:03:29]} 14. Nd6 {[%emt 0:33:40]} g5 {[%emt 0:13:01]} 15. Nxc8 {[%emt 0:02:01]} gxf4 {[%emt 0:01:20]} 16. Bh3 {[%emt 0:00:09]} d4 {[%emt 0:03:45]} 17. Qh5 {[%emt 0:15:37]} Ne6 {[%emt 0:11:16]} 18. Bf5 {[%emt 0:06:48]} Re8 {[%emt 0:00:11]} 19. e5 {[%emt 0:01:04]} Bxe5 {[%emt 0:10:55]} 20. Bxh7+ {[%emt 0:05:44]} Kg7 {[%emt 0:01:08]} 21. Qxe5+ {[%emt 0:00:20]} Kxh7 {[%emt 0:05:52]} 22. Nd6 {[%emt 0:00:37]} Rf8 {[%emt 0:05:01]} 23. Nce4 {[%emt 0:05:21]} Nd7 {[%emt 0:03:32]} 24. Qh5+ {[%emt 0:01:35]} Kg8 {[%emt 0:00:52]} 25. Qg4+ {[%emt 0:01:56]} Kh7 {[%emt 0:03:35]} 26. Nxf7 {[%emt 0:01:16]} Rxf7 {[%emt 0:01:14]} 27. Qxe6 {[%emt 0:00:06]} Rf8 {[%emt 0:03:54]} 28. Qh3+ {[%emt 0:02:19]} Kg6 {[%emt 0:03:08]} 29. Qg4+ {[%emt 0:01:24]} Kh6 {[%emt 0:00:48]} 30. Qh3+ {[%emt 0:07:04]} Kg6 {[%emt 0:00:13]} 31. Qg4+ {[%emt 0:00:44]} Kh6 {[%emt 0:00:36]} 32. Qe6+ {[%emt 0:00:04]} Kg7 {[%emt 0:00:58]} 33. Rae1 {[%emt 0:03:13]} Nf6 {[%emt 0:07:44]} 34. Qxc6 {[%emt 0:07:44]} Qc8 {[%emt 0:05:50]} 35. Qb5 {[%emt 0:02:45]} Qg4 {[%emt 0:00:20]} 36. Qg5+ $18 {[%emt 0:02:08]} (36. Nxf6 Rxf6 37. Re7+ Kf8 38. Rh7) 36... Kh8 {[%emt 0:04:24]} 37. Qe5 {[%emt 0:00:44]} Kg7 {[%emt 0:03:56]} 38. Qe7+ {[%emt 0:00:57]} Kg6 {[%emt 0:01:06]} 39. Nxf6 {[%emt 0:00:06]} Rxf6 {[%emt 0:00:27]} 40. Qe4+ {[%emt 0:00:04]} Qf5 {[%emt 0:01:07]} 41. Qxa8 {[%emt 0:30:06]} f3 {[%emt 0:30:32]} 42. Qe8+ {[%emt 0:00:19]} Kh6 {[%emt 0:00:44]} 43. Re5 {[%emt 0:00:22]} Qg4 {[%emt 0:00:41]} 44. Qh8+ {[%emt 0:00:09]} Kg6 {[%emt 0:00:08]} 45. Qg8+ {[%emt 0:00:03]} 1-0

[Event "22nd Hoogeveen Open 2018"]
[Site "Hoogeveen"]
[Date "2018.10.23"]
[Round "5"]
[White "Baskin, Robert"]
[Black "Minko, Dmitry"]
[Result "1-0"]
[ECO "E07"]
[WhiteElo "2348"]
[BlackElo "2011"]
[Annotator "NA"]
[PlyCount "93"]
[EventDate "2018.10.20"]
[EventType "swiss"]
[EventCountry "NED"]
[SourceTitle "playchess.com"]
[Source "ChessBase"]
[SourceQuality "1"]
[TimeControl "40/5400+30:1800+30"]

1. d4 {[%emt 0:00:00]} d5 {[%emt 0:00:00]} 2. c4 {[%emt 0:00:00]} e6 {[%emt 0:00:00]} 3. Nc3 {[%emt 0:00:00]} Be7 {[%emt 0:00:00]} 4. Nf3 {[%emt 0:00:11]} Nf6 {[%emt 0:00:00]} 5. g3 {[%emt 0:00:22]} O-O {[%emt 0:07:26]} 6. Bg2 {[%emt 0:00:26]} c6 {[%emt 0:10:38]} 7. O-O {[%emt 0:01:54] LiveBook: 626 Games} Nbd7 {[%emt 0:07:32]} 8. b3 {[%emt 0:01:01]} Re8 {[%emt 0:03:53]} 9. Bb2 {[%emt 0:02:41]} Bf8 {[%emt 0:08:41] E07: Closed Catalan: Main Line (5 Nf3 0-0 6 0-0 Nbd7)} 10. Qc2 {[%emt 0:02:08]} g6 {[%emt 0:02:40]} (10... b6 11. e4 Ba6 12. e5 Ng4 13. Rfd1 f6 14. h3 Nh6 15. exf6 gxf6 16. Ne2 {½-½ (36) Sarno,S (2327)-Yeuillaz,C (2223) Arvier 2013}) 11. e4 {[%emt 0:04:29]} Nxe4 {[%emt 0:03:01]} 12. Nxe4 {[%emt 0:00:17]} dxe4 {[%emt 0:00:07]} 13. Qxe4 {[%emt 0:00:19]} Bg7 {[%emt 0:00:36]} 14. Rfd1 {[%emt 0:04:19]} Qc7 $146 {[%emt 0:12:33]} ({Predecessor:} 14... Nf6 15. Qc2 Qc7 16. Ne5 Nd7 {1-0 (34) Marques,V (2215)-Marcondes Cesar,J Sao Paulo 1997}) 15. Ne5 {[%emt 0:07:13]} f6 {[%emt 0:02:46]} 16. Nd3 {[%emt 0:10:00]} e5 {[%emt 0:07:09]} 17. dxe5 {[%emt 0:04:35]} Nxe5 {[%emt 0:01:46]} 18. Nxe5 {[%emt 0:00:50]} Bf5 {[%emt 0:02:45]} 19. Qe3 {[%emt 0:02:32]} fxe5 {[%emt 0:00:08]} 20. Be4 {[%emt 0:02:16]} Bg4 {[%emt 0:05:11]} 21. Rd3 {[%emt 0:05:18]} a6 $16 {[%emt 0:05:04]} 22. Qg5 {[%emt 0:02:20]} Be6 {[%emt 0:05:56]} 23. Rad1 {[%emt 0:01:22]} Qf7 {[%emt 0:00:14]} 24. Qe3 {[%emt 0:05:34]} Bg4 {[%emt 0:02:30]} 25. f3 {[%emt 0:03:54]} Bf5 {[%emt 0:01:49]} 26. Bxf5 {[%emt 0:03:43]} gxf5 {[%emt 0:02:39]} 27. Rd7 {[%emt 0:00:46]} Re7 {[%emt 0:00:13]} 28. Rd8+ {[%emt 0:00:19]} Rxd8 {[%emt 0:01:15]} 29. Rd4 {[%emt 0:00:52]} Rdd7 30. Rxd7 {[%emt 0:00:31]} Re8 {[%emt 0:00:32]} 31. Rd8 {[%emt 0:00:33]} Rxd8 {[%emt 0:04:17]} 32. Qg5 {[%emt 0:00:05]} Qf8 {[%emt 0:00:07]} 33. Qxd8 {[%emt 0:01:14]} Qe8 {[%emt 0:02:07]} 34. Qc7 {[%emt 0:03:18]} Qd8 {[%emt 0:00:09]} 35. Qxb7 {[%emt 0:04:01]} Bh6 {[%emt 0:01:10]} 36. Qa7 {[%emt 0:02:18]} Qd6 {[%emt 0:03:30]} 37. Kg2 Qd2+ {[%emt 0:00:00]} 38. Qf2 {[%emt 0:00:36]} Qd6 {[%emt 0:00:00]} 39. Qe1 {[%emt 0:05:12]} e4 {[%emt 0:00:00]} 40. fxe4 {[%emt 0:05:48]} fxe4 {[%emt 0:00:00]} 41. Qc3 {[%emt 0:30:24]} e3 {[%emt 0:30:49]} 42. Qh8+ {[%emt 0:01:26]} Kf7 {[%emt 0:00:02]} 43. Qxh7+ {[%emt 0:00:41]} Ke8 {[%emt 0:00:00]} 44. Qe4+ {[%emt 0:00:00]} Kf7 {[%emt 0:00:00]} 45. Bd4 {[%emt 0:00:00]} e2 {[%emt 0:00:00]} 46. Kf2 {[%emt 0:00:00]} c5 {[%emt 0:00:00]} 47. Bc3 {[%emt 0:00:00]} 1-0

[Event "22nd Hoogeveen Open 2018"]
[Site "Hoogeveen"]
[Date "2018.10.23"]
[Round "5"]
[White "De Jong, Migchiel"]
[Black "Schippers, Maurice"]
[Result "1/2-1/2"]
[ECO "E97"]
[WhiteElo "2309"]
[BlackElo "2272"]
[Annotator "NA"]
[PlyCount "120"]
[EventDate "2018.10.20"]
[EventType "swiss"]
[EventCountry "NED"]
[SourceTitle "playchess.com"]
[Source "ChessBase"]
[SourceQuality "1"]
[TimeControl "40/5400+30:1800+30"]

1. Nf3 {[%emt 0:00:00]} Nf6 {[%emt 0:00:00]} 2. c4 {[%emt 0:00:02]} g6 {[%emt 0:00:00]} 3. Nc3 {[%emt 0:00:18]} Bg7 {[%emt 0:00:00]} 4. e4 {[%emt 0:00:33]} d6 {[%emt 0:00:00]} 5. d4 {[%emt 0:00:05]} O-O {[%emt 0:00:00]} 6. Be2 {[%emt 0:00:56]} e5 {[%emt 0:00:08]} 7. O-O {[%emt 0:00:29]} Nc6 {[%emt 0:00:26]} 8. d5 {[%emt 0:00:22]} Ne7 {[%emt 0:00:04]} 9. Bd2 {[%emt 0:01:53]} Nh5 {[%emt 0:06:54]} 10. Rc1 {[%emt 0:00:43] LiveBook: 15 Games E97: King's Indian: Classical Main Line (6...e5 7 0-0 Nc6): 8 Be3 and 8 d5 Ne7, not 9 Ne1} b6 $146 {[%emt 0:03:00]} ({Predecessor:} 10... f5 11. Ng5 Nf4 12. Bxf4 exf4 13. Bf3 Bf6 14. Ne6 Bxe6 15. dxe6 c6 16. Re1 Be5 17. exf5 Nxf5 {½-½ (42) Kiriakov,P (2541)-Shomoev,A (2554) Kemerovo 2007}) 11. g3 {[%emt 0:02:37]} f5 {[%emt 0:05:33]} 12. Ng5 {[%emt 0:02:08]} Nf6 {[%emt 0:00:46]} 13. Bf3 {[%emt 0:02:15]} fxe4 {[%emt 0:08:13]} 14. Ncxe4 {[%emt 0:00:25]} Nf5 {[%emt 0:22:48]} 15. b4 {[%emt 0:06:59]} Nd4 {[%emt 0:00:37]} 16. Bg2 {[%emt 0:00:30]} Nxe4 {[%emt 0:02:49]} 17. Nxe4 {[%emt 0:00:23]} a5 {[%emt 0:05:54]} 18. bxa5 {[%emt 0:02:06]} bxa5 {[%emt 0:02:19]} 19. c5 {[%emt 0:01:27]} Bf5 {[%emt 0:02:06]} 20. Be3 {[%emt 0:02:38]} Qd7 {[%emt 0:01:40]} 21. Bxd4 {[%emt 0:03:01]} Bxe4 {[%emt 0:01:56]} 22. Bxe4 {[%emt 0:00:53]} exd4 {[%emt 0:00:04]} 23. cxd6 {[%emt 0:00:09]} cxd6 {[%emt 0:00:23]} 24. Rc6 {[%emt 0:00:12]} Rae8 {[%emt 0:03:21]} 25. Qd3 {[%emt 0:00:35]} Qg4 {[%emt 0:02:24]} 26. Re1 {[%emt 0:03:13]} Be5 {[%emt 0:08:00]} 27. Kg2 {[%emt 0:01:08]} Qg5 {[%emt 0:02:41]} 28. Re2 {[%emt 0:02:27]} Rb8 {[%emt 0:04:13]} 29. h4 {[%emt 0:01:08]} Qd8 {[%emt 0:01:14]} 30. h5 {[%emt 0:02:10]} gxh5 {[%emt 0:02:03]} 31. Bxh7+ {[%emt 0:00:10]} Kh8 {[%emt 0:00:27]} 32. Bf5 {[%emt 0:10:13]} Qg5 {[%emt 0:01:15]} 33. Be6 {[%emt 0:00:27]} Rb7 $16 {[%emt 0:01:16]} 34. Rec2 {[%emt 0:02:25]} h4 {[%emt 0:04:36]} 35. Rc8 {[%emt 0:00:58]} Rb8 {[%emt 0:00:46]} 36. R8c7 {[%emt 0:02:17]} Bg7 {[%emt 0:00:05]} 37. f4 {[%emt 0:01:05]} Rxf4 {[%emt 0:01:51]} 38. Rc8+ {[%emt 0:06:40]} Rf8 {[%emt 0:03:22]} 39. Rxb8 {[%emt 0:02:33]} Rxb8 {[%emt 0:00:00]} 40. Kh3 {[%emt 0:00:37]} Qxg3+ {[%emt 0:05:07]} 41. Qxg3 {[%emt 0:30:05]} hxg3 {[%emt 0:30:06]} 42. Kxg3 {[%emt 0:00:23]} Be5+ {[%emt 0:00:00]} 43. Kf3 {[%emt 0:00:00]} Kg7 {[%emt 0:00:00]} 44. Rc7+ {[%emt 0:00:00]} Kg6 {[%emt 0:00:00]} 45. Ra7 {[%emt 0:00:00]} d3 {[%emt 0:00:00]} 46. Ke3 {[%emt 0:00:00]} Bd4+ {[%emt 0:00:00]} 47. Kxd4 {[%emt 0:00:00]} d2 {[%emt 0:00:00]} 48. Bg4 {[%emt 0:00:00]} Rb4+ {[%emt 0:00:00]} 49. Kc3 {[%emt 0:00:00]} Rxg4 {[%emt 0:00:00]} 50. Kxd2 {[%emt 0:00:00]} Rd4+ {[%emt 0:00:00]} 51. Kc3 {[%emt 0:00:00]} Rxd5 {[%emt 0:00:00]} 52. Kc4 {[%emt 0:00:00]} Rc5+ {[%emt 0:00:00]} 53. Kd4 {[%emt 0:00:00]} Kf6 {[%emt 0:00:00]} 54. a4 {[%emt 0:00:00]} Ke6 {[%emt 0:00:00]} 55. Rh7 {[%emt 0:00:00]} Rd5+ {[%emt 0:00:00]} 56. Kc4 {[%emt 0:00:00]} Rc5+ {[%emt 0:00:00]} 57. Kd4 {[%emt 0:00:00]} Rg5 {[%emt 0:00:00]} 58. Kc4 {[%emt 0:00:00]} Rc5+ {[%emt 0:00:49]} 59. Kd4 {[%emt 0:00:00]} Rg5 {[%emt 0:00:49]} 60. Kc4 {[%emt 0:00:00]} Rc5+ {[%emt 0:00:04]} 1/2-1/2

[Event "22nd Hoogeveen Open 2018"]
[Site "Hoogeveen"]
[Date "2018.10.23"]
[Round "5"]
[White "Warakomska, Anna"]
[Black "Boersma, Jan"]
[Result "1/2-1/2"]
[ECO "B74"]
[WhiteElo "2293"]
[BlackElo "2047"]
[Annotator "NA"]
[PlyCount "40"]
[EventDate "2018.10.20"]
[EventType "swiss"]
[EventCountry "NED"]
[SourceTitle "playchess.com"]
[Source "ChessBase"]
[SourceQuality "1"]
[TimeControl "40/5400+30:1800+30"]

1. e4 {[%emt 0:00:00]} c5 {[%emt 0:00:00]} 2. Nf3 {[%emt 0:00:00]} g6 {[%emt 0:00:00]} 3. d4 {[%emt 0:00:00]} cxd4 {[%emt 0:00:00]} 4. Nxd4 {[%emt 0:00:00]} Nc6 {[%emt 0:00:00]} 5. Nb3 {[%emt 0:00:54]} Nf6 {[%emt 0:00:12]} 6. Nc3 {[%emt 0:00:09]} Bg7 {[%emt 0:00:06]} 7. Be2 {[%emt 0:00:30]} O-O {[%emt 0:00:21]} 8. O-O {[%emt 0:00:08]} d6 {[%emt 0:00:59] LiveBook: 1688 Games} 9. Be3 {[%emt 0:00:49]} Be6 {[%emt 0:00:16]} 10. f3 {[%emt 0:01:42]} Nd7 {[%emt 0:10:53]} 11. Rb1 {[%emt 0:08:17]} Nb6 {[%emt 0:01:56]} 12. Nd4 $11 {[%emt 0:09:59]} Bc4 {[%emt 0:00:23]} 13. b3 {[%emt 0:04:17]} Bxe2 {[%emt 0:03:03]} 14. Ncxe2 {[%emt 0:00:07]} d5 {[%emt 0:00:14]} 15. exd5 {[%emt 0:02:00]} Nxd5 {[%emt 0:06:14]} 16. Bf2 {[%emt 0:06:37]} Qa5 {[%emt 0:18:05]} 17. c4 {[%emt 0:24:04]} Ndb4 {[%emt 0:05:08]} 18. a3 {[%emt 0:00:57]} Qxa3 {[%emt 0:02:48]} 19. Ra1 {[%emt 0:02:02]} Qb2 {[%emt 0:00:09]} 20. Rb1 {[%emt 0:00:40]} Qa3 {[%emt 0:01:17]} 1/2-1/2

[Event "22nd Hoogeveen Open 2018"]
[Site "Hoogeveen"]
[Date "2018.10.23"]
[Round "5"]
[White "Elgersma, Simon"]
[Black "Dev, Shah"]
[Result "1-0"]
[ECO "C77"]
[WhiteElo "2237"]
[BlackElo "2146"]
[Annotator "NA"]
[PlyCount "64"]
[EventDate "2018.10.20"]
[EventType "swiss"]
[EventCountry "NED"]
[SourceTitle "playchess.com"]
[Source "ChessBase"]
[SourceQuality "1"]
[TimeControl "40/5400+30:1800+30"]

1. e4 {[%emt 0:00:00]} e5 {[%emt 0:00:30]} 2. Nf3 {[%emt 0:00:00]} Nc6 {[%emt 0:00:09]} 3. Bb5 {[%emt 0:00:01]} a6 {[%emt 0:00:06]} 4. Ba4 {[%emt 0:00:05]} Nf6 {[%emt 0:00:05]} 5. d3 {[%emt 0:00:09]} b5 {[%emt 0:00:04]} 6. Bb3 {[%emt 0:00:08]} Be7 {[%emt 0:00:04]} 7. Nc3 {[%emt 0:00:29]} d6 {[%emt 0:04:42]} 8. a3 {[%emt 0:00:02]} O-O {[%emt 0:01:01]} 9. O-O {[%emt 0:00:04]} Be6 {[%emt 0:02:55]} 10. Nd5 {[%emt 0:01:31]} Na5 {[%emt 0:10:56]} 11. Nxf6+ {[%emt 0:00:10]} Bxf6 {[%emt 0:00:36]} 12. Bxe6 {[%emt 0:00:34]} fxe6 {[%emt 0:00:02]} 13. b4 {[%emt 0:00:12]} Nc6 {[%emt 0:01:13]} 14. c3 $14 {[%emt 0:04:13] LiveBook: 16 Games} d5 {[%emt 0:06:04]} 15. Qc2 {[%emt 0:24:49]} Qd7 {[%emt 0:03:28]} 16. a4 {[%emt 0:06:45]} Rad8 {[%emt 0:08:31]} 17. Be3 {[%emt 0:07:18]} Rfe8 {[%emt 0:07:00]} 18. Rfc1 {[%emt 0:04:34]} d4 {[%emt 0:12:54]} 19. cxd4 {[%emt 0:03:44]} Nxb4 {[%emt 0:00:57]} 20. Qb3 {[%emt 0:01:30]} a5 {[%emt 0:12:34]} 21. dxe5 {[%emt 0:06:24]} bxa4 {[%emt 0:04:51]} 22. Qc4 {[%emt 0:06:19]} Nxd3 {[%emt 0:05:49]} 23. exf6 {[%emt 0:05:05]} Nxc1 {[%emt 0:00:37]} 24. f7+ {[%emt 0:00:10]} Qxf7 {[%emt 0:00:26]} 25. Rxc1 {[%emt 0:02:19]} Qd7 {[%emt 0:05:53]} 26. h3 {[%emt 0:04:14]} a3 {[%emt 0:03:18]} 27. Bd4 {[%emt 0:04:17]} Qe7 {[%emt 0:05:04]} 28. Bc5 {[%emt 0:05:50]} Qd7 {[%emt 0:01:18]} 29. Ne5 {[%emt 0:01:37]} Qd2 {[%emt 0:01:09]} 30. Bxa3 {[%emt 0:01:04]} Qd4 {[%emt 0:00:32]} 31. Qxc7 {[%emt 0:00:36]} Qxe4 {[%emt 0:01:03]} 32. Bb2 {[%emt 0:00:40]} Rb8 {[%emt 0:00:00]} 1-0

[Event "22nd Hoogeveen Open 2018"]
[Site "Hoogeveen"]
[Date "2018.10.23"]
[Round "5"]
[White "Elgersma, Onno"]
[Black "Blagojevic, Tijana"]
[Result "0-1"]
[ECO "B90"]
[WhiteElo "2223"]
[BlackElo "2232"]
[Annotator "NA"]
[PlyCount "82"]
[EventDate "2018.10.20"]
[EventType "swiss"]
[EventCountry "NED"]
[SourceTitle "playchess.com"]
[Source "ChessBase"]
[SourceQuality "1"]
[TimeControl "40/5400+30:1800+30"]

1. e4 {[%emt 0:00:00]} c5 {[%emt 0:00:00]} 2. Nf3 {[%emt 0:00:00]} d6 {[%emt 0:00:00]} 3. d4 {[%emt 0:00:12]} cxd4 {[%emt 0:00:00]} 4. Nxd4 {[%emt 0:00:11]} Nf6 {[%emt 0:00:00]} 5. Nc3 {[%emt 0:00:20]} a6 {[%emt 0:00:00]} 6. h3 {[%emt 0:00:39]} e5 {[%emt 0:00:23]} 7. Nde2 {[%emt 0:00:27]} h5 {[%emt 0:00:09]} 8. Bg5 {[%emt 0:01:02]} Be6 {[%emt 0:00:14]} 9. Bxf6 {[%emt 0:01:10]} Qxf6 {[%emt 0:00:05]} 10. Nd5 {[%emt 0:00:21]} Qd8 {[%emt 0:00:05]} 11. Nec3 {[%emt 0:04:14]} g6 {[%emt 0:05:17]} 12. Bc4 {[%emt 0:02:12] LiveBook: 32 Games} Bh6 {[%emt 0:00:48]} 13. O-O {[%emt 0:02:20]} O-O {[%emt 0:00:44]} 14. a4 {[%emt 0:08:30]} Nc6 {[%emt 0:07:45]} 15. Ba2 {[%emt 0:07:32]} Rc8 {[%emt 0:03:39]} 16. Kh1 {[%emt 0:03:16]} Qh4 {[%emt 0:25:10]} 17. Qd3 $15 {[%emt 0:05:24]} Qd8 {[%emt 0:04:14]} 18. b4 {[%emt 0:15:53]} Nd4 {[%emt 0:06:16]} 19. a5 {[%emt 0:12:53]} Bxd5 {[%emt 0:09:49]} 20. Bxd5 {[%emt 0:00:33]} Qc7 {[%emt 0:02:44]} 21. Ra3 {[%emt 0:00:14]} Kh8 {[%emt 0:04:09]} 22. Rb1 {[%emt 0:19:38]} Qe7 {[%emt 0:04:16]} 23. b5 {[%emt 0:02:10]} axb5 {[%emt 0:00:47]} 24. Nxb5 {[%emt 0:00:10]} Rxc2 {[%emt 0:14:25]} 25. Nxd4 {[%emt 0:02:52]} Rd2 {[%emt 0:00:01]} 26. Qf3 {[%emt 0:02:44]} exd4 {[%emt 0:00:03]} 27. Rxb7 {[%emt 0:02:30]} Qe5 {[%emt 0:00:16]} 28. Rxf7 {[%emt 0:03:22]} Rxf7 {[%emt 0:02:11]} 29. Bxf7 {[%emt 0:00:05]} Rc2 {[%emt 0:04:16]} 30. g3 {[%emt 0:00:27]} Rc3 {[%emt 0:00:29]} 31. Rxc3 {[%emt 0:01:02]} dxc3 {[%emt 0:00:04]} 32. Qd3 {[%emt 0:00:09]} Qc5 {[%emt 0:02:41]} 33. Bb3 {[%emt 0:00:52]} Qxf2 {[%emt 0:04:08]} 34. Qxc3+ {[%emt 0:00:06]} Bg7 {[%emt 0:00:06]} 35. Qd3 {[%emt 0:00:25]} Bd4 {[%emt 0:00:13]} 36. Qd1 {[%emt 0:00:43]} h4 {[%emt 0:00:35]} 37. gxh4 {[%emt 0:03:10]} Be5 {[%emt 0:00:03]} 38. Qg1 {[%emt 0:00:23]} Qf3+ {[%emt 0:00:01]} 39. Qg2 {[%emt 0:00:05]} Qxb3 {[%emt 0:00:05]} 40. Qxg6 {[%emt 0:00:59]} Qxh3+ {[%emt 0:00:43]} 41. Kg1 {[%emt 0:30:10]} Bd4# {[%emt 0:30:14]} 0-1

[Event "22nd Hoogeveen Open 2018"]
[Site "Hoogeveen"]
[Date "2018.10.23"]
[Round "5"]
[White "Zarkovic, Mila"]
[Black "Van der Hagen, Loek"]
[Result "1-0"]
[ECO "B56"]
[WhiteElo "2213"]
[BlackElo "1820"]
[Annotator "NA"]
[PlyCount "94"]
[EventDate "2018.10.20"]
[EventType "swiss"]
[EventCountry "NED"]
[SourceTitle "playchess.com"]
[Source "ChessBase"]
[SourceQuality "1"]
[TimeControl "40/5400+30:1800+30"]

1. e4 {[%emt 0:00:00]} c5 {[%emt 0:00:00]} 2. Nf3 {[%emt 0:00:00]} d6 {[%emt 0:00:00]} 3. d4 {[%emt 0:00:00]} cxd4 {[%emt 0:00:00]} 4. Nxd4 {[%emt 0:00:00]} Nf6 {[%emt 0:00:06]} 5. Nc3 {[%emt 0:00:00]} Nc6 {[%emt 0:00:12]} 6. Be3 {[%emt 0:00:13]} Ng4 {[%emt 0:00:30] LiveBook: 419 Games} 7. Bg5 {[%emt 0:04:32]} Qb6 {[%emt 0:01:00]} 8. Bb5 {[%emt 0:00:38]} e5 {[%emt 0:21:46]} 9. Nd5 {[%emt 0:03:23] B56: Classical Sicilian: Unusual Lines} Qxd4 {[%emt 0:03:30]} 10. Qxd4 {[%emt 0:02:54]} exd4 {[%emt 0:00:13]} 11. Nc7+ {[%emt 0:01:09]} Kd7 {[%emt 0:00:06]} 12. Nxa8 {[%emt 0:00:07]} b6 {[%emt 0:05:17]} 13. h3 {[%emt 0:16:10]} (13. a4 Bb7 14. a5 h6 15. axb6 a6 16. Bxa6 Bxa6 17. Rxa6 hxg5 {1-0 (30) Schaefer,M (2455)-Degerman,L (2460) Budapest 1993}) 13... Nge5 $146 {[%emt 0:03:39]} ({Predecessor:} 13... f6 14. Bh4 Nge5 15. Nxb6+ axb6 16. f4 Ng6 {0-1 (55) Nadzamova,V (1947)-Danada,T (2248) Kosice 2017}) 14. O-O-O {[%emt 0:18:39]} Bb7 {[%emt 0:04:37]} 15. Nxb6+ {[%emt 0:01:03]} axb6 {[%emt 0:00:13]} 16. Rxd4 {[%emt 0:00:57]} Be7 {[%emt 0:05:19]} 17. Bxe7 {[%emt 0:16:54]} Kxe7 {[%emt 0:00:17]} 18. Bxc6 {[%emt 0:00:40]} Nxc6 {[%emt 0:03:10]} 19. Rd2 {[%emt 0:01:56]} Ne5 {[%emt 0:04:52]} 20. b3 {[%emt 0:05:22]} h5 {[%emt 0:06:10]} 21. Rhd1 {[%emt 0:01:31]} Rd8 {[%emt 0:01:14]} 22. f3 {[%emt 0:01:40]} g5 {[%emt 0:01:20]} 23. Rd4 {[%emt 0:01:37]} Bc6 $14 {[%emt 0:03:08]} 24. a4 {[%emt 0:00:53]} Ke6 {[%emt 0:08:21]} 25. Kb2 {[%emt 0:02:05]} f6 {[%emt 0:04:23]} 26. Rb4 {[%emt 0:03:46]} Nd7 {[%emt 0:02:29]} 27. Ka3 {[%emt 0:03:08]} h4 {[%emt 0:04:55]} 28. Rc4 {[%emt 0:01:09]} Ne5 {[%emt 0:01:35]} 29. Rcd4 {[%emt 0:01:22]} Rd7 {[%emt 0:07:20]} 30. c4 {[%emt 0:01:03]} Nf7 {[%emt 0:00:55]} 31. b4 {[%emt 0:00:31]} Ra7 {[%emt 0:02:20]} 32. a5 {[%emt 0:05:02]} Ke5 {[%emt 0:01:35]} 33. Kb3 {[%emt 0:03:24]} bxa5 {[%emt 0:00:18]} 34. b5 {[%emt 0:00:05]} Bb7 {[%emt 0:00:59]} 35. Ka4 {[%emt 0:00:19]} Kf4 {[%emt 0:01:17]} 36. Rxd6 {[%emt 0:04:36]} Nxd6 {[%emt 0:01:02]} 37. Rxd6 {[%emt 0:00:02]} Ke5 {[%emt 0:00:59]} 38. c5 {[%emt 0:00:49]} Ra8 {[%emt 0:01:58]} 39. Rd7 {[%emt 0:00:47]} Bc8 {[%emt 0:00:34]} 40. Rd8 {[%emt 0:00:46]} Ke6 {[%emt 0:01:12]} 41. c6 {[%emt 0:02:57]} Bb7 {[%emt 0:12:35]} 42. Rxa8 {[%emt 0:05:41]} Bxa8 {[%emt 0:00:12]} 43. Kxa5 {[%emt 0:00:03]} Ke7 {[%emt 0:00:37]} 44. Ka6 {[%emt 0:03:07]} Kd8 {[%emt 0:00:22]} 45. Kb6 {[%emt 0:00:16]} Kc8 {[%emt 0:01:08]} 46. Kc5 {[%emt 0:00:07]} Kb8 {[%emt 0:01:29]} 47. b6 {[%emt 0:00:11]} Kc8 {[%emt 0:00:19]} 1-0

[Event "22nd Hoogeveen Open 2018"]
[Site "Hoogeveen"]
[Date "2018.10.23"]
[Round "5"]
[White "Damen, Jip"]
[Black "Hamblok, Roel"]
[Result "0-1"]
[ECO "C12"]
[WhiteElo "2192"]
[BlackElo "2275"]
[Annotator "NA"]
[PlyCount "52"]
[EventDate "2018.10.20"]
[EventType "swiss"]
[EventCountry "NED"]
[SourceTitle "playchess.com"]
[Source "ChessBase"]
[SourceQuality "1"]
[TimeControl "40/5400+30:1800+30"]

1. e4 {[%emt 0:00:00]} e6 {[%emt 0:01:42]} 2. d4 {[%emt 0:00:00]} d5 {[%emt 0:00:08]} 3. Nc3 {[%emt 0:00:00]} Nf6 {[%emt 0:00:08]} 4. Bg5 {[%emt 0:00:11]} Bb4 {[%emt 0:00:10]} 5. e5 {[%emt 0:00:35]} h6 {[%emt 0:00:25]} 6. Bh4 {[%emt 0:00:15]} g5 {[%emt 0:00:16]} 7. Bg3 {[%emt 0:00:04]} Ne4 {[%emt 0:00:08]} 8. Nge2 {[%emt 0:00:20]} f5 {[%emt 0:04:19]} 9. exf6 {[%emt 0:02:23]} Qxf6 {[%emt 0:03:27]} 10. a3 {[%emt 0:00:52] LiveBook: 4 Games} Nxg3 {[%emt 0:00:23]} 11. hxg3 {[%emt 0:00:35]} Be7 {[%emt 0:00:23]} 12. Ng1 $17 {[%emt 0:07:38]} (12. Nc1 $11) 12... Nc6 {[%emt 0:17:04]} 13. Bb5 {[%emt 0:04:42]} O-O {[%emt 0:04:00]} 14. f4 {[%emt 0:08:48]} Nxd4 {[%emt 0:06:41]} 15. Bd3 {[%emt 0:01:26]} gxf4 {[%emt 0:05:52]} 16. Nf3 {[%emt 0:06:57]} Nxf3+ {[%emt 0:06:02]} 17. Qxf3 {[%emt 0:00:43]} Qe5+ {[%emt 0:01:13]} 18. Ne2 {[%emt 0:01:02]} fxg3 {[%emt 0:01:10]} 19. Qxg3+ {[%emt 0:02:07]} Qxg3+ {[%emt 0:00:22]} 20. Nxg3 {[%emt 0:00:05]} Bg5 {[%emt 0:01:16]} 21. c4 {[%emt 0:01:50]} c6 {[%emt 0:00:44]} 22. Ke2 {[%emt 0:01:04]} e5 {[%emt 0:04:28]} 23. Bc2 {[%emt 0:00:19]} Bg4+ {[%emt 0:01:32]} 24. Kd3 {[%emt 0:00:25]} Rf2 {[%emt 0:03:25]} 25. Rhg1 {[%emt 0:00:06]} Bf4 {[%emt 0:03:06]} 26. Nh1 {[%emt 0:00:11]} Bf5+ {[%emt 0:00:11] Kd4 [%emt 00:00:35]} 0-1